fUSD/lending_fUSD_20240630
["ID","MTS","AMOUNT","RATE_DAILY","PERIOD"]
[330752340,1719755499786,-500.0,0.00014465,3]
[330752341,1719755499795,-500.0,0.00014465,3]
[330752342,1719755499804,-500.0,0.00014465,3]
[330752343,1719755499813,-933.76,0.00014465,3]
[330752344,1719755499823,-500.0,0.00014465,3]
[330752345,1719755499832,-500.0,0.00014465,3]
[330752346,1719755499842,-1403.52,0.00014465,3]
[330752347,1719755499851,-500.0,0.00014465,3]
[330752348,1719755499860,-500.0,0.00014465,3]
[330752349,1719755499870,-534.11,0.00014465,3]
[330752350,1719755499879,-500.0,0.00014465,3]
[330752351,1719755499889,-500.0,0.00014465,3]
[330752352,1719755499898,-500.0,0.00014465,3]
[330752353,1719755499908,-500.0,0.00014465,3]
[330752354,1719755499917,-500.0,0.00014465,3]
[330752355,1719755499927,-500.0,0.00014465,3]
[330752356,1719755499941,-648.58,0.00014465,3]
[330752357,1719755499950,-500.0,0.00014465,3]
[330752358,1719755499963,-518.15,0.00014465,3]
[330752359,1719755499972,-668.63,0.00014465,3]
[330752360,1719755499982,-500.0,0.00014465,3]
[330752361,1719755499992,-1137.4,0.00014465,3]
[330752362,1719755500003,-500.0,0.00014465,3]
[330752363,1719755500013,-750.23,0.00014465,3]
[330752364,1719755500023,-500.0,0.00014465,3]
[330752365,1719755500032,-565.47,0.00014465,3]
[330752366,1719755500042,-500.0,0.00014465,3]
[330752367,1719755500051,-964.26,0.00014465,3]
[330752368,1719755500061,-500.0,0.00014465,3]
[330752369,1719755500070,-502.48,0.00014465,3]
[330752370,1719755500079,-500.0,0.00014465,3]
[330752371,1719755500089,-905.38,0.00014465,3]
[330752372,1719755500098,-762.19,0.00014465,3]
[330752373,1719755500108,-500.0,0.00014465,3]
[330752374,1719755500118,-1355.12,0.00014465,3]
[330752375,1719755500127,-500.0,0.00014465,3]
[330752376,1719755500137,-500.0,0.00014465,3]
[330752377,1719755500146,-500.0,0.00014465,3]
[330752378,1719755500156,-662.1,0.00014465,3]
[330752379,1719755500165,-500.0,0.00014465,3]
[330752380,1719755500174,-765.23,0.00014465,3]
[330752381,1719755500186,-690.29,0.00014465,3]
[330752382,1719755500198,-877.24,0.00014465,3]
[330752383,1719755500207,-500.0,0.00014465,3]
[330752384,1719755500217,-713.88,0.00014465,3]
[330752385,1719755500226,-500.0,0.00014465,3]
[330752386,1719755500235,-500.0,0.00014465,3]
[330752387,1719755500244,-1457.02,0.00014465,3]
[330752388,1719755500253,-500.0,0.00014465,3]
[330752389,1719755500262,-639.03,0.00014465,3]
[330752390,1719755500272,-1059.53,0.00014465,3]
[330752391,1719755500281,-500.0,0.00014465,3]
[330752392,1719755500290,-1241.5,0.00014465,3]
[330752393,1719755500299,-500.0,0.00014465,3]
[330752394,1719755500309,-737.63,0.00014465,3]
[330752395,1719755500318,-1349.88,0.00014465,3]
[330752396,1719755500328,-377.05551244,0.00014465,3]
[330752397,1719755500337,-561.34,0.00014465,3]
[330752398,1719755500346,-604.72,0.00014465,3]
[330752399,1719755500356,-500.0,0.00014465,3]
[330752400,1719755500365,-500.0,0.00014465,3]
[330752401,1719755500374,-500.0,0.00014465,3]
[330752402,1719755500383,-957.39,0.00014465,3]
[330752403,1719755500393,-764.6,0.00014465,3]
[330752404,1719755500402,-660.46,0.00014465,3]
[330752405,1719755500411,-604.79,0.00014465,3]
[330752406,1719755500421,-905.53,0.00014465,3]
[330752407,1719755500430,-500.0,0.00014465,3]
[330752408,1719755500443,-526.22,0.00014465,3]
[330752409,1719755500452,-500.0,0.00014465,3]
[330752410,1719755500461,-500.0,0.00014465,3]
[330752411,1719755500470,-500.0,0.00014465,3]
[330752412,1719755500479,-500.0,0.00014465,3]
[330752413,1719755500488,-622.84,0.00014465,3]
[330752414,1719755500498,-500.0,0.00014465,3]
[330752415,1719755500507,-1277.66,0.00014465,3]
[330752416,1719755500517,-500.0,0.00014465,3]
[330752417,1719755500526,-500.0,0.00014465,3]
[330752418,1719755500535,-1641.91,0.00014465,3]
[330752419,1719755500544,-707.52,0.00014465,3]
[330752420,1719755500554,-500.0,0.00014465,3]
[330752421,1719755500563,-616.94,0.00014465,3]
[330752422,1719755500572,-1304.99,0.00014465,3]
[330752423,1719755500581,-620.52,0.00014465,3]
[330752424,1719755500596,-500.0,0.00014465,3]
[330752425,1719755500606,-500.0,0.00014465,3]
[330752426,1719755500616,-500.0,0.00014465,3]
[330752427,1719755500626,-500.0,0.00014465,3]
[330752428,1719755500636,-721.33,0.00014465,3]
[330752429,1719755500646,-500.0,0.00014465,3]
[330752430,1719755500655,-504.24,0.00014465,3]
[330752431,1719755500665,-832.16,0.00014465,3]
[330752432,1719755500677,-500.0,0.00014465,3]
[330752433,1719755500690,-700.83,0.00014465,3]
[330752434,1719755500699,-614.4,0.00014465,3]
[330752435,1719755500709,-500.0,0.00014465,3]
[330752436,1719755500718,-500.0,0.00014465,3]
[330752437,1719755500727,-1044.88,0.00014465,3]
[330752438,1719755500737,-500.0,0.00014465,3]
[330752439,1719755500747,-500.0,0.00014465,3]
[330752440,1719755500757,-507.13,0.00014465,3]
[330752441,1719755500767,-500.0,0.00014465,3]
[330752442,1719755500776,-500.0,0.00014465,3]
[330752443,1719755500785,-500.0,0.00014465,3]
[330752444,1719755500795,-517.3,0.00014465,3]
[330752445,1719755500804,-500.0,0.00014465,3]
[330752446,1719755500814,-500.0,0.00014465,3]
[330752447,1719755500824,-881.23,0.00014465,3]
[330752448,1719755500833,-891.0,0.00014465,3]
[330752449,1719755500842,-656.4,0.00014465,3]
[330752450,1719755500851,-689.57,0.00014465,3]
[330752451,1719755500861,-957.05,0.00014465,3]
[330752452,1719755500870,-283.31,0.00014465,3]
[330752453,1719755500879,-1173.05,0.00014465,3]
[330752454,1719755500889,-638.94643659,0.00014465,3]
[330752455,1719755500899,-507.92,0.00014465,3]
[330752456,1719755500909,-500.0,0.00014465,3]
[330752457,1719755500918,-544.05,0.00014465,3]
[330752458,1719755500927,-500.0,0.00014465,3]
[330752459,1719755500940,-500.0,0.00014465,3]
[330752460,1719755500949,-703.63,0.00014465,3]
[330752461,1719755500958,-592.64,0.00014465,3]
[330752462,1719755500967,-500.0,0.00014465,3]
[330752463,1719755500976,-500.0,0.00014465,3]
[330752464,1719755500984,-759.3,0.00014465,3]
[330752465,1719755500994,-397.55,0.00014465,3]
[330752466,1719755501004,-500.0,0.00014465,3]
[330752467,1719755501013,-500.0,0.00014465,3]
[330752468,1719755501023,-500.0,0.00014465,3]
[330752469,1719755501032,-910.64,0.00014465,3]
[330752470,1719755501041,-641.73,0.00014465,3]
[330752471,1719755501051,-544.61,0.00014465,3]
[330752472,1719755501060,-590.62,0.00014465,3]
[330752473,1719755501069,-500.0,0.00014465,3]
[330752474,1719755501078,-689.38,0.00014465,3]
[330752475,1719755501088,-500.0,0.00014465,3]
[330752476,1719755501097,-661.02,0.00014465,3]
[330752477,1719755501106,-2904.97,0.00014465,3]
[330752478,1719755501115,-500.0,0.00014465,3]
[330752479,1719755501125,-500.0,0.00014465,3]
[330752480,1719755501134,-507.72,0.00014465,3]
[330752481,1719755501143,-1290.65,0.00014465,3]
[330752482,1719755501152,-500.0,0.00014465,3]
[330752483,1719755501161,-554.44,0.00014465,3]
[330752484,1719755501170,-578.69,0.00014465,3]
[330752485,1719755501179,-655.08,0.00014465,3]
[330752486,1719755501193,-500.0,0.00014465,3]
[330752487,1719755501202,-1361.14,0.00014465,3]
[330752488,1719755501212,-812.49,0.00014465,3]
[330752489,1719755501221,-500.0,0.00014465,3]
[330752490,1719755501230,-634.96,0.00014465,3]
[330752491,1719755501239,-500.0,0.00014465,3]
[330752492,1719755501248,-500.0,0.00014465,3]
[330752493,1719755501257,-500.0,0.00014465,3]
[330752494,1719755501266,-500.0,0.00014465,3]
[330752495,1719755501276,-896.65,0.00014465,3]
[330752496,1719755501285,-787.92,0.00014465,3]
[330752497,1719755501294,-500.0,0.00014465,3]
[330752498,1719755501303,-500.0,0.00014465,3]
[330752499,1719755501313,-1488.55,0.00014465,3]
[330752500,1719755501322,-500.0,0.00014465,3]
[330752501,1719755501332,-584.33,0.00014465,3]
[330752502,1719755501341,-1089.27,0.00014465,3]
[330752503,1719755501350,-500.0,0.00014465,3]
[330752504,1719755501360,-500.0,0.00014465,3]
[330752505,1719755501369,-500.0,0.00014465,3]
[330752506,1719755501379,-500.0,0.00014465,3]
[330752507,1719755501399,-500.0,0.00014465,3]
[330752508,1719755501409,-2577.34,0.00014465,3]
[330752509,1719755501419,-664.84,0.00014465,3]
[330752510,1719755501429,-516.98,0.00014465,3]
[330752511,1719755501440,-500.0,0.0001448,2]
[330752512,1719755501449,-272.0,0.00014495,2]
[330752513,1719755501458,-204.3476328,0.00014498,2]
[330752514,1719755501467,-1135.43,0.00014502,3]
[330752515,1719755501476,-1617.34,0.00014502,3]
[330752516,1719755501486,-1220.92,0.00014502,3]
[330752517,1719755501496,-529.92,0.00014502,3]
[330752518,1719755501506,-1337.79,0.00014502,3]
[330752519,1719755501516,-1162.53,0.00014502,3]
[330752520,1719755501526,-3818.29,0.00014504,3]
[330752521,1719755501535,-2148.15,0.00014532,3]
[330752522,1719755501544,-1274.99,0.00014532,3]
[330752523,1719755501554,-1079.15,0.00014541,3]
[330752524,1719755501564,-1590.65,0.00014541,3]
[330752525,1719755501573,-1459.73,0.00014541,3]
[330752526,1719755501583,-911.31,0.00014541,3]
[330752527,1719755501596,-592.8,0.00014541,3]
[330752528,1719755501606,-830.15,0.00014541,3]
[330752529,1719755501615,-1114.89,0.00014541,3]
[330752530,1719755501626,-500.0,0.00014541,3]
[330752531,1719755501636,-967.5,0.00014541,3]
[330752532,1719755501645,-640.83,0.00014541,3]
[330752533,1719755501654,-500.0,0.00014541,3]
[330752534,1719755501666,-500.0,0.00014541,3]
[330752535,1719755501676,-500.0,0.00014575,3]
[330752536,1719755501685,-500.0,0.00014575,3]
[330752537,1719755501694,-642.55,0.00014575,3]
[330752538,1719755501703,-1492.12,0.00014575,3]
[330752539,1719755501712,-500.0,0.00014575,3]
[330752540,1719755501721,-526.54,0.00014575,3]
[330752541,1719755501731,-518.76,0.00014575,3]
[330752542,1719755501740,-500.0,0.00014575,3]
[330752543,1719755501750,-554.07,0.00014575,3]
[330752544,1719755501760,-500.0,0.00014575,3]
[330752545,1719755501769,-500.0,0.00014575,3]
[330752546,1719755501779,-500.0,0.00014575,3]
[330752547,1719755501788,-500.0,0.00014575,3]
[330752548,1719755501798,-500.0,0.00014575,3]
[330752549,1719755501807,-500.0,0.00014575,3]
[330752550,1719755501816,-500.0,0.00014575,3]
[330752551,1719755501826,-500.0,0.00014575,3]
[330752552,1719755501835,-500.0,0.00014575,3]
[330752553,1719755501844,-500.0,0.00014575,3]
[330752554,1719755501854,-500.0,0.00014575,3]
[330752555,1719755501864,-500.0,0.00014575,3]
[330752556,1719755501874,-1182.32,0.00014575,3]
[330752557,1719755501883,-500.0,0.00014575,3]
[330752558,1719755501893,-500.0,0.00014575,3]
[330752559,1719755501903,-500.0,0.00014575,3]
[330752560,1719755501914,-500.0,0.00014575,3]
[330752561,1719755501923,-500.0,0.00014575,3]
[330752562,1719755501934,-500.0,0.00014575,3]
[330752563,1719755501943,-500.0,0.00014575,3]
[330752564,1719755501952,-500.0,0.00014575,3]
[330752565,1719755501961,-500.0,0.00014575,3]
[330752566,1719755501971,-253.59,0.00014575,3]
[330752567,1719755501981,-505.0,0.00014575,3]
[330752568,1719755501991,-500.0,0.00014575,3]
[330752569,1719755502003,-393.14650381,0.00014575,3]
[330752570,1719755502012,-500.0,0.00014575,3]
[330752571,1719755502022,-500.0,0.00014575,3]
[330752572,1719755502031,-500.0,0.00014575,3]
[330752573,1719755502041,-500.0,0.00014575,3]
[330752574,1719755502051,-500.0,0.00014575,3]
[330752575,1719755502061,-561.37,0.00014575,3]
[330752576,1719755502070,-500.0,0.00014575,3]
[330752577,1719755502080,-201.04133546,0.00014575,3]
[330752578,1719755502089,-500.0,0.00014575,3]
[330752579,1719755502099,-500.0,0.00014575,3]
[330752580,1719755502108,-278.77,0.00014575,3]
[330752581,1719755502118,-500.0,0.00014575,3]
[330752582,1719755502127,-500.0,0.00014575,3]
[330752583,1719755502136,-500.0,0.00014575,3]
[330752584,1719755502146,-500.0,0.00014575,3]
[330752585,1719755502156,-500.0,0.00014575,3]
[330752586,1719755502165,-900.1,0.00014575,3]
[330752587,1719755502175,-500.0,0.00014575,3]
[330752588,1719755502189,-500.0,0.00014575,3]
[330752589,1719755502198,-206.87,0.00014575,3]
[330752590,1719755502207,-694.23,0.00014575,3]
[330752591,1719755502217,-500.0,0.00014575,3]
[330752592,1719755502226,-500.0,0.00014575,3]
[330752593,1719755502236,-398.59563455,0.00014575,3]
[330752594,1719755502245,-554.48,0.00014575,3]
[330752595,1719755502255,-500.0,0.00014575,3]
[330752596,1719755502265,-500.0,0.00014575,3]
[330752597,1719755502274,-500.0,0.00014575,3]
[330752598,1719755502284,-500.0,0.00014575,3]
[330752599,1719755502293,-500.0,0.00014575,3]
[330752600,1719755502304,-500.0,0.00014575,3]
[330752601,1719755502312,-500.0,0.00014575,3]
[330752602,1719755502322,-500.0,0.00014575,3]
[330752603,1719755502331,-378.62,0.00014575,3]
[330752604,1719755502340,-500.0,0.00014575,3]
[330752605,1719755502350,-500.0,0.00014575,3]
[330752606,1719755502359,-593.15,0.00014575,3]
[330752607,1719755502368,-239.69,0.00014575,3]
[330752608,1719755502377,-500.0,0.00014575,3]
[330752609,1719755502386,-453.5,0.00014575,3]
[330752610,1719755502396,-500.0,0.00014575,3]
[330752611,1719755502405,-500.0,0.00014575,3]
[330752612,1719755502415,-528.94,0.00014575,3]
[330752613,1719755502426,-690.44,0.00014575,3]
[330752614,1719755502440,-500.0,0.00014575,3]
[330752615,1719755502449,-502.26,0.00014575,3]
[330752616,1719755502458,-500.0,0.00014575,3]
[330752617,1719755502467,-500.0,0.00014575,3]
[330752618,1719755502476,-500.0,0.00014575,3]
[330752619,1719755502486,-500.0,0.00014575,3]
[330752620,1719755502495,-500.0,0.00014575,3]
[330752621,1719755502504,-500.0,0.00014575,3]
[330752622,1719755502513,-500.0,0.00014575,3]
[330752623,1719755502522,-757.41,0.00014575,3]
[330752624,1719755502532,-500.0,0.00014575,3]
[330752625,1719755502541,-715.47,0.00014575,3]
[330752626,1719755502551,-621.83,0.00014575,3]
[330752627,1719755502562,-500.0,0.00014575,3]
[330752628,1719755502572,-500.0,0.00014575,3]
[330752629,1719755502582,-571.76,0.00014575,3]
[330752630,1719755502595,-705.69,0.00014575,3]
[330752631,1719755502605,-500.0,0.00014575,3]
[330752632,1719755502834,-500.0,0.00014575,3]
[330752633,1719755502844,-500.0,0.00014575,3]
[330752634,1719755502854,-500.0,0.00014575,3]
[330752635,1719755502864,-500.0,0.00014575,3]
[330752636,1719755502873,-532.86,0.00014575,3]
[330752637,1719755502882,-675.41,0.00014575,3]
[330752638,1719755502892,-581.61,0.00014575,3]
[330752639,1719755502901,-663.09,0.00014575,3]
[330752640,1719755502910,-500.0,0.00014575,3]
[330752641,1719755502920,-500.0,0.00014575,3]
[330752642,1719755502930,-577.38,0.00014575,3]
[330752643,1719755502942,-500.0,0.00014575,3]
[330752644,1719755502951,-500.0,0.00014575,3]
[330752645,1719755502962,-500.0,0.00014575,3]
[330752646,1719755502971,-500.0,0.00014575,3]
[330752647,1719755502981,-500.0,0.00014575,3]
[330752648,1719755502990,-540.81,0.00014575,3]
[330752649,1719755503001,-500.0,0.00014575,3]
[330752650,1719755503011,-500.0,0.00014575,3]
[330752651,1719755503020,-718.0,0.00014575,3]
[330752652,1719755503030,-574.88,0.00014575,3]
[330752653,1719755503040,-500.0,0.00014575,3]
[330752654,1719755503050,-652.08,0.00014575,3]
[330752655,1719755503059,-500.0,0.00014575,3]
[330752656,1719755503071,-500.0,0.00014575,3]
[330752657,1719755503080,-920.11,0.00014575,3]
[330752658,1719755503090,-695.25,0.00014575,3]
[330752659,1719755503099,-510.24,0.00014575,3]
[330752660,1719755503110,-642.39,0.00014575,3]
[330752661,1719755503120,-605.83,0.00014575,3]
[330752662,1719755503129,-677.83,0.00014575,3]
[330752663,1719755503139,-500.0,0.00014575,3]
[330752664,1719755503148,-581.28,0.00014575,3]
[330752665,1719755503158,-500.0,0.00014575,3]
[330752666,1719755503167,-500.0,0.00014575,3]
[330752667,1719755503177,-812.74,0.00014575,3]
[330752668,1719755503186,-500.0,0.00014575,3]
[330752669,1719755503196,-701.39,0.00014575,3]
[330752670,1719755503207,-620.73,0.00014575,3]
[330752671,1719755503216,-500.0,0.00014575,3]
[330752672,1719755503227,-500.0,0.00014575,3]
[330752673,1719755503238,-500.0,0.00014575,3]
[330752674,1719755503248,-553.86,0.00014575,3]
[330752675,1719755503259,-500.0,0.00014575,3]
[330752676,1719755503268,-500.0,0.00014575,3]
[330752677,1719755503278,-621.88,0.00014575,3]
[330752678,1719755503289,-500.0,0.00014575,3]
[330752679,1719755503299,-500.0,0.00014575,3]
[330752680,1719755503308,-251.13,0.00014575,3]
[330752681,1719755503318,-612.92,0.00014575,3]
[330752682,1719755503328,-500.0,0.00014575,3]
[330752683,1719755503338,-1832.16,0.00014575,3]
[330752684,1719755503348,-681.93,0.00014575,3]
[330752685,1719755503357,-562.52,0.00014575,3]
[330752686,1719755503367,-594.84,0.00014575,3]
[330752687,1719755503376,-500.0,0.00014575,3]
[330752688,1719755503386,-559.37,0.00014575,3]
[330752689,1719755503395,-500.0,0.00014575,3]
[330752690,1719755503404,-757.31,0.00014575,3]
[330752691,1719755503414,-500.0,0.00014575,3]
[330752692,1719755503424,-656.95,0.00014575,3]
[330752693,1719755503433,-738.1,0.00014575,3]
[330752694,1719755503443,-631.07,0.00014575,3]
[330752695,1719755503452,-1210.93,0.00014575,3]
[330752696,1719755503462,-561.72,0.00014575,3]
[330752697,1719755503472,-576.94,0.00014575,3]
[330752698,1719755503482,-500.0,0.00014575,3]
[330752699,1719755503492,-500.0,0.00014575,3]
[330752700,1719755503501,-513.03,0.00014575,3]
[330752701,1719755503510,-748.82,0.00014575,3]
[330752702,1719755503520,-500.0,0.00014575,3]
[330752703,1719755503529,-500.0,0.00014575,3]
[330752704,1719755503539,-851.99,0.00014575,3]
[330752705,1719755503548,-590.03,0.00014575,3]
[330752706,1719755503557,-704.42,0.00014575,3]
[330752707,1719755503567,-1993.43,0.00014575,3]
[330752708,1719755503576,-525.63,0.00014575,3]
[330752709,1719755503588,-500.0,0.00014575,3]
[330752710,1719755503599,-500.0,0.00014575,3]
[330752711,1719755503608,-833.5,0.00014575,3]
[330752712,1719755503618,-500.0,0.00014575,3]
[330752713,1719755503627,-500.0,0.00014575,3]
[330752714,1719755503638,-500.0,0.00014575,3]
[330752715,1719755503648,-500.0,0.00014575,3]
[330752716,1719755503657,-500.0,0.00014575,3]
[330752717,1719755503667,-500.0,0.00014575,3]
[330752718,1719755503676,-500.0,0.00014575,3]
[330752719,1719755503686,-500.0,0.00014575,3]
[330752720,1719755503696,-500.0,0.00014575,3]
[330752721,1719755503705,-500.0,0.00014575,3]
[330752722,1719755503715,-664.06,0.00014575,3]
[330752723,1719755503726,-565.11,0.00014575,3]
[330752724,1719755503735,-186.83,0.00014575,3]
[330752725,1719755503745,-500.0,0.00014575,3]
[330752726,1719755503755,-500.0,0.00014575,3]
[330752727,1719755503764,-519.91,0.00014575,3]
[330752728,1719755503774,-500.0,0.00014575,3]
[330752729,1719755503784,-500.0,0.00014575,3]
[330752730,1719755503794,-680.22,0.00014575,3]
[330752731,1719755503804,-500.0,0.00014575,3]
[330752732,1719755503813,-763.34,0.00014575,3]
[330752733,1719755503823,-500.0,0.00014575,3]
[330752734,1719755503832,-500.0,0.00014575,3]
[330752735,1719755503841,-500.0,0.00014575,3]
[330752736,1719755503851,-502.66,0.00014575,3]
[330752737,1719755503861,-500.0,0.00014575,3]
[330752738,1719755503870,-500.0,0.00014575,3]
[330752739,1719755503879,-500.0,0.00014575,3]
[330752740,1719755503889,-657.33,0.00014575,3]
[330752741,1719755503898,-726.36,0.00014575,3]
[330752742,1719755503907,-500.0,0.00014575,3]
[330752743,1719755503917,-500.0,0.00014575,3]
[330752744,1719755503926,-588.22,0.00014575,3]
[330752745,1719755503936,-1038.06,0.00014575,3]
[330752746,1719755503945,-581.82,0.00014575,3]
[330752747,1719755503954,-500.0,0.00014575,3]
[330752748,1719755503963,-500.0,0.00014575,3]
[330752749,1719755503972,-500.0,0.00014575,3]
[330752750,1719755503982,-500.0,0.00014575,3]
[330752751,1719755503992,-500.0,0.00014575,3]
[330752752,1719755504003,-500.0,0.00014575,3]
[330752753,1719755504012,-871.16,0.00014575,3]
[330752754,1719755504022,-500.0,0.00014575,3]
[330752755,1719755504032,-500.0,0.00014575,3]
[330752756,1719755504041,-500.0,0.00014575,3]
[330752757,1719755504050,-1237.1,0.00014575,3]
[330752758,1719755504060,-978.48,0.00014575,3]
[330752759,1719755504069,-500.0,0.00014575,3]
[330752760,1719755504079,-298.05,0.00014575,3]
[330752761,1719755504088,-647.7,0.00014575,3]
[330752762,1719755504097,-515.55,0.00014575,3]
[330752763,1719755504107,-503.58,0.00014575,3]
[330752764,1719755504116,-500.0,0.00014575,3]
[330752765,1719755504125,-500.0,0.00014575,3]
[330752766,1719755504135,-568.53,0.00014575,3]
[330752767,1719755504144,-727.04,0.00014575,3]
[330752768,1719755504153,-731.31,0.00014575,3]
[330752769,1719755504163,-845.38,0.00014575,3]
[330752770,1719755504172,-653.03,0.00014575,3]
[330752771,1719755504182,-500.0,0.00014575,3]
[330752772,1719755504193,-500.0,0.00014575,3]
[330752773,1719755504203,-1124.32,0.00014575,3]
[330752774,1719755504212,-518.38,0.00014575,3]
[330752775,1719755504227,-680.8,0.00014575,3]
[330752776,1719755504238,-1020.54,0.00014575,3]
[330752777,1719755504247,-500.0,0.00014575,3]
[330752778,1719755504257,-500.0,0.00014575,3]
[330752779,1719755504267,-786.17,0.00014575,3]
[330752780,1719755504276,-414.97,0.00014575,3]
[330752781,1719755504287,-500.0,0.00014575,3]
[330752782,1719755504296,-571.49,0.00014575,3]
[330752783,1719755504306,-582.78,0.00014575,3]
[330752784,1719755504315,-500.0,0.00014575,3]
[330752785,1719755504325,-544.15,0.00014575,3]
[330752786,1719755504336,-500.0,0.00014575,3]
[330752787,1719755504346,-4117.59,0.00014575,3]
[330752788,1719755504355,-500.0,0.00014575,3]
[330752789,1719755504365,-613.82,0.00014575,3]
[330752790,1719755504375,-500.0,0.00014575,3]
[330752791,1719755504384,-766.18,0.00014575,3]
[330752792,1719755504394,-500.0,0.00014575,3]
[330752793,1719755504404,-842.1,0.00014575,3]
[330752794,1719755504414,-500.0,0.00014575,3]
[330752795,1719755504423,-500.0,0.00014575,3]
[330752796,1719755504433,-500.0,0.00014575,3]
[330752797,1719755504444,-500.0,0.00014575,3]
[330752798,1719755504452,-500.0,0.00014575,3]
[330752799,1719755504461,-500.0,0.00014575,3]
[330752800,1719755504470,-500.0,0.00014575,3]
[330752801,1719755504480,-933.76,0.00014575,3]
[330752802,1719755504489,-500.0,0.00014575,3]
[330752803,1719755504499,-1403.52,0.00014575,3]
[330752804,1719755504508,-500.0,0.00014575,3]
[330752805,1719755504519,-500.0,0.00014575,3]
[330752806,1719755504528,-534.11,0.00014575,3]
[330752807,1719755504538,-500.0,0.00014575,3]
[330752808,1719755504547,-500.0,0.00014575,3]
[330752809,1719755504556,-500.0,0.00014575,3]
[330752810,1719755504566,-500.0,0.00014575,3]
[330752811,1719755504575,-500.0,0.00014575,3]
[330752812,1719755504587,-500.0,0.00014575,3]
[330752813,1719755504600,-648.58,0.00014575,3]
[330752814,1719755504609,-500.0,0.00014575,3]
[330752815,1719755504619,-518.15,0.00014575,3]
[330752816,1719755504628,-668.63,0.00014575,3]
[330752817,1719755504638,-500.0,0.00014575,3]
[330752818,1719755504647,-1137.4,0.00014575,3]
[330752819,1719755504657,-500.0,0.00014575,3]
[330752820,1719755504667,-750.23,0.00014575,3]
[330752821,1719755504679,-500.0,0.00014575,3]
[330752822,1719755504689,-565.47,0.00014575,3]
[330752823,1719755504699,-500.0,0.00014575,3]
[330752824,1719755504709,-964.26,0.00014575,3]
[330752825,1719755504719,-500.0,0.00014575,3]
[330752826,1719755504729,-502.48,0.00014575,3]
[330752827,1719755504740,-500.0,0.00014575,3]
[330752828,1719755504749,-905.38,0.00014575,3]
[330752829,1719755504761,-762.19,0.00014575,3]
[330752830,1719755504771,-500.0,0.00014575,3]
[330752831,1719755504783,-1355.12,0.00014575,3]
[330752832,1719755504794,-500.0,0.00014575,3]
[330752833,1719755504804,-500.0,0.00014575,3]
[330752834,1719755504815,-500.0,0.00014575,3]
[330752835,1719755504824,-662.1,0.00014575,3]
[330752836,1719755504833,-500.0,0.00014575,3]
[330752837,1719755504843,-765.23,0.00014575,3]
[330752838,1719755504852,-690.29,0.00014575,3]
[330752839,1719755504862,-877.24,0.00014575,3]